fUST/lending_fUST_20250503
["ID","MTS","AMOUNT","RATE_DAILY","PERIOD"]
[359693171,1746258638999,-500.0,0.0001863,2]
[359693173,1746258639009,-525.58083412,0.00018753,2]
[359693176,1746258639022,-574.46757907,0.00018799,2]
[359693178,1746258639031,-300.0,0.00018898,2]
[359693180,1746258639041,-278.17344657,0.00018898,2]
[359693182,1746258639051,-500.0,0.00018898,2]
[359693184,1746258639060,-500.0,0.00018898,2]
[359693186,1746258639071,-500.0,0.00018898,2]
[359693188,1746258639080,-500.0,0.00018898,2]
[359693190,1746258639090,-500.0,0.00018898,2]
[359693192,1746258639100,-500.0,0.00018898,2]
[359693194,1746258639110,-500.0,0.00018898,2]
[359693196,1746258639120,-500.0,0.00018898,2]
[359693198,1746258639130,-500.0,0.00018898,2]
[359693200,1746258639140,-237.43758881,0.00018898,2]
[359693202,1746258639150,-500.0,0.00018898,2]
[359693204,1746258639160,-500.0,0.00018898,2]
[359693206,1746258639170,-500.0,0.00018898,2]
[359693208,1746258639180,-500.0,0.00018898,2]
[359693210,1746258639191,-174.59868419,0.00018898,2]
[359693212,1746258639201,-500.0,0.00018898,2]
[359693214,1746258639211,-500.0,0.00018898,2]
[359693216,1746258639221,-500.0,0.00018898,2]
[359693217,1746258639231,-500.0,0.00018898,2]
[359693218,1746258639241,-500.0,0.00018898,2]
[359693219,1746258639251,-500.0,0.00018898,2]
[359693220,1746258639260,-500.0,0.00018898,2]
[359693221,1746258639270,-500.0,0.00018898,2]
[359693222,1746258639279,-463.19336468,0.00018898,2]
[359693223,1746258639290,-500.0,0.00018898,2]
[359693224,1746258639300,-500.0,0.00018898,2]
[359693225,1746258639309,-500.0,0.00018898,2]
[359693226,1746258639320,-500.0,0.00018898,2]
[359693227,1746258639329,-500.0,0.00018898,2]
[359693228,1746258639339,-500.0,0.00018898,2]
[359693229,1746258639349,-500.0,0.00018898,2]
[359693230,1746258639358,-500.0,0.00018898,2]
[359693231,1746258639367,-500.0,0.00018898,2]
[359693232,1746258639377,-500.0,0.00018898,2]
[359693233,1746258639387,-500.0,0.00018898,2]
[359693234,1746258639396,-500.0,0.00018898,2]
[359693235,1746258639406,-500.0,0.00018898,2]
[359693236,1746258639416,-500.0,0.00018898,2]
[359693237,1746258639427,-500.0,0.00018898,2]
[359693238,1746258639436,-352.67329004,0.000189,2]
[359693240,1746258639446,-500.0,0.00019169,2]
[359693242,1746258639456,-219.96360952,0.00019169,2]
[359693244,1746258639465,-1974.7,0.0001917,2]
[359693246,1746258639476,-24398.16970686,0.0001917,2]
[359693248,1746258639486,-510.57951542,0.00019173,2]
[359693250,1746258639495,-500.0,0.00019173,2]
[359693252,1746258639506,-265.33085839,0.00019173,2]
[359693254,1746258639515,-500.0,0.00019173,2]
[359693256,1746258639524,-500.0,0.00019173,2]
[359693258,1746258639534,-500.0,0.00019173,2]
[359693261,1746258639543,-500.96642341,0.00019173,2]
[359693263,1746258639554,-500.77856961,0.00019173,2]
[359693265,1746258639563,-400.0,0.00019178,2]
[359693267,1746258639572,-400.0,0.00019178,2]
[359693269,1746258639582,-400.0,0.00019178,2]
[359693271,1746258639591,-400.0,0.00019178,2]
[359693273,1746258639600,-400.0,0.00019178,2]
[359693275,1746258639610,-400.0,0.00019178,2]
[359693277,1746258639619,-346.20349944,0.00019178,2]
[359693279,1746258639629,-400.0,0.00019178,2]
[359693281,1746258639638,-400.0,0.00019178,2]
[359693283,1746258639648,-404.5,0.00019178,2]
[359693285,1746258639657,-400.0,0.00019178,2]
[359693287,1746258639668,-400.0,0.00019178,2]
[359693289,1746258639677,-400.0,0.00019178,2]
[359693291,1746258639687,-400.0,0.00019178,2]
[359693293,1746258639696,-425.7,0.00019178,2]
[359693295,1746258639706,-458.4,0.00019178,2]
[359693297,1746258639716,-403.95413531,0.00019178,2]
[359693299,1746258639725,-400.0,0.00019178,2]
[359693301,1746258639735,-1642.39,0.00019178,2]
[359693303,1746258639745,-237.25064223,0.00019178,2]
[359693306,1746258639755,-400.0,0.00019178,2]
[359693308,1746258639765,-400.0,0.00019178,2]
[359693310,1746258639775,-400.0,0.00019178,2]
[359693312,1746258639786,-400.0,0.00019178,2]
[359693314,1746258639796,-271.11314045,0.00019178,2]
[359693316,1746258639805,-400.0,0.00019178,2]
[359693318,1746258639819,-400.0,0.00019178,2]
[359693320,1746258639828,-400.0,0.00019178,2]
[359693322,1746258639838,-400.0,0.00019178,2]
[359693324,1746258639847,-400.0,0.00019178,2]
[359693326,1746258639857,-400.0,0.00019178,2]
[359693328,1746258639867,-400.0,0.00019178,2]
[359693331,1746258639878,-311.51075673,0.00019178,2]
[359693333,1746258639888,-400.0,0.00019178,2]
[359693335,1746258639898,-400.0,0.00019178,2]
[359693337,1746258639908,-410.22521621,0.00019178,2]
[359693339,1746258639919,-401.29446346,0.00019178,2]
[359693341,1746258639929,-400.0,0.00019178,2]
[359693343,1746258639939,-400.0,0.00019178,2]
[359693345,1746258639949,-400.0,0.00019178,2]
[359693347,1746258639958,-400.0,0.00019178,2]
[359693349,1746258639968,-409.1137732,0.00019178,2]
[359693351,1746258639978,-400.0,0.00019178,2]
[359693353,1746258639988,-400.0,0.00019178,2]
[359693355,1746258639998,-400.0,0.00019178,2]
[359693357,1746258640007,-400.0,0.00019178,2]
[359693359,1746258640017,-403.15,0.00019178,2]
[359693361,1746258640027,-400.0,0.00019178,2]
[359693364,1746258640038,-408.43778808,0.00019178,2]
[359693366,1746258640048,-412.65138783,0.00019178,2]
[359693368,1746258640058,-400.0,0.00019178,2]
[359693370,1746258640068,-408.9382936,0.00019178,2]
[359693372,1746258640078,-433.13144796,0.00019178,2]
[359693374,1746258640087,-400.0,0.00019178,2]
[359693376,1746258640097,-408.95411869,0.00019178,2]
[359693378,1746258640107,-411.25072707,0.00019178,2]
[359693380,1746258640116,-400.0,0.00019178,2]
[359693382,1746258640125,-400.0,0.00019178,2]
[359693384,1746258640136,-400.0,0.00019178,2]
[359693386,1746258640146,-670.98,0.00019178,2]
[359693388,1746258640156,-400.0,0.00019178,2]
[359693390,1746258640165,-411.51949103,0.00019178,2]
[359693392,1746258640175,-400.0,0.00019178,2]
[359693394,1746258640185,-591.84,0.00019178,2]
[359693396,1746258640194,-615.44,0.00019178,2]
[359693399,1746258640205,-1016.6,0.00019178,2]
[359693401,1746258640215,-400.0,0.00019178,2]
[359693403,1746258640225,-593.95,0.00019178,2]
[359693405,1746258640234,-400.0,0.00019178,2]
[359693407,1746258640244,-400.0,0.00019178,2]
[359693409,1746258640254,-400.0,0.00019178,2]
[359693411,1746258640263,-400.0,0.00019178,2]
[359693413,1746258640272,-530.39,0.00019178,2]
[359693415,1746258640282,-400.0,0.00019178,2]
[359693417,1746258640291,-400.0,0.00019178,2]
[359693419,1746258640301,-400.0,0.00019178,2]
[359693421,1746258640310,-400.0,0.00019178,2]
[359693423,1746258640320,-400.0,0.00019178,2]
[359693425,1746258640329,-400.0,0.00019178,2]
[359693427,1746258640339,-677.5,0.00019178,2]
[359693429,1746258640348,-405.42,0.00019178,2]
[359693431,1746258640358,-400.0,0.00019178,2]
[359693433,1746258640367,-468.54,0.00019178,2]
[359693435,1746258640377,-400.0,0.00019178,2]
[359693437,1746258640387,-422.69,0.00019178,2]
[359693439,1746258640396,-400.0,0.00019178,2]
[359693441,1746258640406,-400.0,0.00019178,2]
[359693443,1746258640415,-400.0,0.00019178,2]
[359693445,1746258640425,-400.0,0.00019178,2]
[359693447,1746258640435,-448.1,0.00019178,2]
[359693449,1746258640444,-400.0,0.00019178,2]
[359693451,1746258640454,-400.0,0.00019178,2]
[359693453,1746258640464,-400.0,0.00019178,2]
[359693456,1746258640475,-400.0,0.00019178,2]
[359693458,1746258640485,-562.87,0.00019178,2]
[359693460,1746258640496,-400.0,0.00019178,2]
[359693462,1746258640505,-388.75883401,0.00019178,2]
[359693464,1746258640515,-549.07,0.00019178,2]
[359693466,1746258640524,-568.63,0.00019178,2]
[359693468,1746258640533,-416.83,0.00019178,2]
[359693470,1746258640542,-400.0,0.00019178,2]
[359693472,1746258640551,-400.0,0.00019178,2]
[359693474,1746258640560,-657.83,0.00019178,2]
[359693475,1746258640570,-400.0,0.00019178,2]
[359693478,1746258640579,-400.0,0.00019178,2]
[359693480,1746258640588,-1304.06,0.00019178,2]
[359693482,1746258640598,-400.0,0.00019178,2]
[359693484,1746258640607,-400.0,0.00019178,2]
[359693486,1746258640616,-400.0,0.00019178,2]
[359693488,1746258640625,-400.0,0.00019178,2]
[359693490,1746258640634,-1418.92,0.00019178,2]
[359693492,1746258640643,-484.49,0.00019178,2]
[359693494,1746258640652,-411.39,0.00019178,2]
[359693496,1746258640662,-1039.21,0.00019178,2]
[359693498,1746258640671,-400.0,0.00019178,2]
[359693500,1746258640680,-400.0,0.00019178,2]
[359693502,1746258640689,-577.93,0.00019178,2]
[359693504,1746258640699,-160.03797654,0.00019178,2]
[359693506,1746258640708,-400.0,0.00019178,2]
[359693508,1746258640718,-1256.64,0.00019178,2]
[359693510,1746258640727,-873.52,0.00019178,2]
[359693511,1746258640739,-193.517092,0.00019178,2]
[359693513,1746258640749,-154323.9359818,0.00019253,2]
[359693548,1746258641055,-309841.36732163,0.00019253,2]
[359693551,1746258641078,-608.92218227,0.00019253,2]
[359693553,1746258641091,-554.03877979,0.00019253,2]
[359693567,1746258641209,-404.73,0.00019178,2]
[359693569,1746258641219,-6241.90303208,0.00019253,2]
[359693571,1746258641231,-684.48492881,0.00019253,2]
[359693783,1746258643859,-135492.29107534,0.00019253,2]
[359693785,1746258643869,-160.0,0.00019254,2]
[359693787,1746258643879,-182.16284668,0.00019254,2]
[359693789,1746258643888,-12601.56422439,0.00019254,2]
[359693791,1746258643898,-160.0,0.00019254,2]
[359693793,1746258643907,-160.0,0.00019254,2]
[359693795,1746258643917,-841.47485993,0.00019254,2]
[359693797,1746258643926,-421.66712248,0.00019254,2]
[359693799,1746258643937,-160.0,0.00019254,2]
[359693801,1746258643946,-589.32908041,0.00019273,2]
[359693803,1746258643956,-500.0,0.00019273,2]
[359693805,1746258643966,-500.0,0.00019273,2]
[359693807,1746258643976,-500.0,0.00019273,2]
[359693809,1746258643986,-500.0,0.00019273,2]
[359693811,1746258643996,-500.0,0.00019273,2]
[359693813,1746258644006,-300.0,0.00019273,2]
[359693815,1746258644015,-512.11058216,0.00019273,2]
[359693817,1746258644024,-408.9415023,0.00019447,2]
[359693820,1746258644034,-182.16284668,0.00019448,3]
[359693822,1746258644045,-12601.56422439,0.00019448,3]
[359693823,1746258644055,-841.47485993,0.00019448,3]
[359693825,1746258644065,-400.0,0.00019452,2]
[359693828,1746258644075,-400.0,0.00019452,2]
[359693830,1746258644086,-400.0,0.00019452,2]
[359693832,1746258644095,-400.0,0.00019452,2]
[359693834,1746258644105,-400.0,0.00019452,2]
[359693836,1746258644114,-400.0,0.00019452,2]
[359693838,1746258644123,-400.0,0.00019452,2]
[359693840,1746258644131,-404.5,0.00019452,2]
[359693842,1746258644140,-400.0,0.00019452,2]
[359693844,1746258644150,-400.0,0.00019452,2]
[359693846,1746258644159,-400.0,0.00019452,2]
[359693848,1746258644168,-400.0,0.00019452,2]
[359693850,1746258644177,-425.7,0.00019452,2]
[359693852,1746258644186,-458.4,0.00019452,2]
[359693854,1746258644195,-400.0,0.00019452,2]
[359693856,1746258644205,-1642.39,0.00019452,2]
[359693858,1746258644214,-400.0,0.00019452,2]
[359693860,1746258644223,-400.0,0.00019452,2]
[359693862,1746258644232,-400.0,0.00019452,2]
[359693864,1746258644241,-400.0,0.00019452,2]
[359693866,1746258644250,-400.0,0.00019452,2]
[359693868,1746258644260,-400.0,0.00019452,2]
[359693870,1746258644269,-400.0,0.00019452,2]
[359693872,1746258644278,-400.0,0.00019452,2]
[359693874,1746258644287,-400.0,0.00019452,2]
[359693876,1746258644296,-400.0,0.00019452,2]
[359693878,1746258644305,-400.0,0.00019452,2]
[359693880,1746258644314,-530.63336797,0.00019452,2]
[359693882,1746258644323,-400.0,0.00019452,2]
[359693884,1746258644332,-400.0,0.00019452,2]
[359693886,1746258644341,-400.0,0.00019452,2]
[359693888,1746258644350,-400.0,0.00019452,2]
[359693890,1746258644360,-400.0,0.00019452,2]
[359693892,1746258644369,-400.0,0.00019452,2]
[359693894,1746258644378,-400.0,0.00019452,2]
[359693896,1746258644388,-400.0,0.00019452,2]
[359693898,1746258644397,-403.15,0.00019452,2]
[359693900,1746258644405,-400.0,0.00019452,2]
[359693902,1746258644415,-400.0,0.00019452,2]
[359693904,1746258644424,-400.0,0.00019452,2]
[359693906,1746258644433,-400.0,0.00019452,2]
[359693908,1746258644442,-400.0,0.00019452,2]
[359693910,1746258644451,-670.98,0.00019452,2]
[359693912,1746258644460,-400.0,0.00019452,2]
[359693914,1746258644469,-591.84,0.00019452,2]
[359693915,1746258644478,-615.44,0.00019452,2]
[359693918,1746258644487,-1016.6,0.00019452,2]
[359693919,1746258644497,-400.0,0.00019452,2]
[359693922,1746258644507,-593.95,0.00019452,2]
[359693924,1746258644518,-401.79585643,0.00019452,2]
[359693925,1746258644528,-400.0,0.00019452,2]
[359693928,1746258644538,-530.39,0.00019452,2]
[359693930,1746258644547,-400.0,0.00019452,2]
[359693932,1746258644556,-400.0,0.00019452,2]
[359693934,1746258644566,-400.0,0.00019452,2]
[359693936,1746258644575,-400.0,0.00019452,2]
[359693938,1746258644584,-677.5,0.00019452,2]
[359693939,1746258644593,-400.0,0.00019452,2]
[359693942,1746258644602,-468.54,0.00019452,2]
[359693944,1746258644611,-400.0,0.00019452,2]
[359693945,1746258644621,-422.69,0.00019452,2]
[359693948,1746258644630,-225.04182471,0.00019452,2]
[359693950,1746258644640,-400.0,0.00019452,2]
[359693952,1746258644650,-400.0,0.00019452,2]
[359693954,1746258644658,-400.0,0.00019452,2]
[359693956,1746258644667,-448.1,0.00019452,2]
[359693958,1746258644677,-400.0,0.00019452,2]
[359693960,1746258644688,-400.0,0.00019452,2]
[359693962,1746258644697,-400.0,0.00019452,2]
[359693964,1746258644706,-400.0,0.00019452,2]
[359693966,1746258644714,-562.87,0.00019452,2]
[359693968,1746258644724,-400.0,0.00019452,2]
[359693970,1746258644737,-549.07,0.00019452,2]
[359693972,1746258644746,-568.63,0.00019452,2]
[359693974,1746258644755,-416.83,0.00019452,2]
[359693976,1746258644765,-400.0,0.00019452,2]
[359693978,1746258644775,-400.0,0.00019452,2]
[359693980,1746258644786,-657.83,0.00019452,2]
[359693982,1746258644796,-400.0,0.00019452,2]
[359693984,1746258644806,-400.0,0.00019452,2]
[359693986,1746258644816,-1304.06,0.00019452,2]
[359693988,1746258644829,-400.0,0.00019452,2]
[359693990,1746258644838,-400.0,0.00019452,2]
[359693992,1746258644848,-400.0,0.00019452,2]
[359693994,1746258644857,-400.0,0.00019452,2]
[359693996,1746258644867,-1418.92,0.00019452,2]
[359693999,1746258644877,-484.49,0.00019452,2]
[359694001,1746258644886,-411.39,0.00019452,2]
[359694003,1746258644896,-1039.21,0.00019452,2]
[359694005,1746258644906,-400.0,0.00019452,2]
[359694007,1746258644915,-400.0,0.00019452,2]
[359694009,1746258644924,-577.93,0.00019452,2]
[359694011,1746258644934,-1256.64,0.00019452,2]
[359694013,1746258644943,-873.52,0.00019452,2]
[359694015,1746258644954,-404.73,0.00019452,2]
[359694017,1746258644963,-1000.0,0.00019452,2]
[359694019,1746258644972,-504.74478972,0.00019473,2]
[359694021,1746258644982,-500.0,0.00019473,2]
[359694023,1746258644991,-500.0,0.00019473,2]
[359694025,1746258645001,-500.0,0.00019473,2]
[359694027,1746258645011,-295.25340225,0.00019473,2]
[359694029,1746258645021,-500.0,0.00019473,2]
[359694031,1746258645030,-500.0,0.00019473,2]
[359694033,1746258645039,-500.0,0.00019473,2]
[359694035,1746258645048,-508.52082637,0.00019473,2]
[359694037,1746258645057,-500.0,0.00019473,2]
[359694039,1746258645067,-607.06642187,0.00019473,2]
[359694041,1746258645077,-507.91443702,0.00019473,2]
[359694043,1746258645086,-500.0,0.00019473,2]
[359694045,1746258645095,-500.0,0.00019473,2]
[359694047,1746258645105,-238.0,0.00019473,2]
[359694049,1746258645114,-238.0,0.00019473,2]
[359694051,1746258645123,-500.0,0.00019473,2]
[359694053,1746258645133,-322.43786904,0.00019473,2]
[359694055,1746258645143,-500.19299414,0.00019473,2]
[359694057,1746258645152,-500.0,0.00019473,2]
[359694059,1746258645162,-545.0,0.00019513,2]
[359694061,1746258645172,-2244.0,0.00019513,2]
[359694063,1746258645181,-707.0,0.00019513,2]
[359694065,1746258645191,-400.0,0.00019726,2]
[359694067,1746258645200,-400.0,0.00019726,2]
[359694069,1746258645209,-400.0,0.00019726,2]
[359694071,1746258645218,-400.0,0.00019726,2]
[359694073,1746258645228,-400.0,0.00019726,2]
[359694075,1746258645238,-400.0,0.00019726,2]
[359694077,1746258645247,-400.0,0.00019726,2]
[359694079,1746258645256,-404.5,0.00019726,2]
[359694081,1746258645267,-400.0,0.00019726,2]
[359694083,1746258645276,-400.0,0.00019726,2]
[359694085,1746258645285,-400.0,0.00019726,2]
[359694087,1746258645294,-400.0,0.00019726,2]
[359694089,1746258645303,-425.7,0.00019726,2]
[359694091,1746258645313,-458.4,0.00019726,2]
[359694093,1746258645322,-400.0,0.00019726,2]
[359694095,1746258645331,-1642.39,0.00019726,2]
[359694097,1746258645341,-400.0,0.00019726,2]
[359694099,1746258645350,-400.0,0.00019726,2]
[359694101,1746258645360,-400.0,0.00019726,2]
[359694103,1746258645369,-400.0,0.00019726,2]
[359694105,1746258645379,-400.0,0.00019726,2]
[359694107,1746258645388,-400.0,0.00019726,2]
[359694109,1746258645397,-400.0,0.00019726,2]
[359694111,1746258645407,-400.0,0.00019726,2]
[359694113,1746258645417,-400.0,0.00019726,2]
[359694115,1746258645426,-400.0,0.00019726,2]
[359694117,1746258645436,-400.0,0.00019726,2]
[359694119,1746258645446,-400.0,0.00019726,2]
[359694121,1746258645455,-400.0,0.00019726,2]
[359694123,1746258645464,-400.0,0.00019726,2]
[359694125,1746258645473,-400.0,0.00019726,2]
[359694127,1746258645483,-400.0,0.00019726,2]
[359694129,1746258645492,-400.0,0.00019726,2]
[359694131,1746258645501,-400.0,0.00019726,2]
[359694133,1746258645512,-400.0,0.00019726,2]
[359694135,1746258645521,-403.15,0.00019726,2]
[359694137,1746258645530,-400.0,0.00019726,2]
[359694139,1746258645539,-400.0,0.00019726,2]
[359694141,1746258645548,-400.0,0.00019726,2]
[359694143,1746258645558,-400.0,0.00019726,2]
[359694145,1746258645568,-670.98,0.00019726,2]
[359694147,1746258645578,-400.0,0.00019726,2]
[359694149,1746258645589,-591.84,0.00019726,2]
[359694151,1746258645599,-615.44,0.00019726,2]
[359694153,1746258645609,-1016.6,0.00019726,2]
[359694155,1746258645618,-400.0,0.00019726,2]
[359694157,1746258645627,-593.95,0.00019726,2]
[359694159,1746258645637,-400.0,0.00019726,2]
[359694161,1746258645646,-530.39,0.00019726,2]
[359694163,1746258645655,-400.0,0.00019726,2]
[359694165,1746258645664,-400.0,0.00019726,2]
[359694167,1746258645674,-400.0,0.00019726,2]
[359694169,1746258645684,-400.0,0.00019726,2]
[359694171,1746258645693,-677.5,0.00019726,2]
[359694173,1746258645703,-400.0,0.00019726,2]
[359694176,1746258645713,-468.54,0.00019726,2]
[359694178,1746258645723,-400.0,0.00019726,2]
[359694180,1746258645732,-422.69,0.00019726,2]
[359694181,1746258645741,-400.0,0.00019726,2]
[359694184,1746258645750,-400.0,0.00019726,2]
[359694185,1746258645759,-400.0,0.00019726,2]
[359694188,1746258645769,-448.1,0.00019726,2]
[359694190,1746258645778,-400.0,0.00019726,2]
[359694192,1746258645787,-400.0,0.00019726,2]
[359694194,1746258645797,-400.0,0.00019726,2]
[359694196,1746258645806,-400.0,0.00019726,2]
[359694198,1746258645816,-562.87,0.00019726,2]
[359694200,1746258645825,-159.3687046,0.00019726,2]
[359694202,1746258645834,-549.07,0.00019726,2]
[359694204,1746258645844,-151.0,0.00019726,2]
[359694206,1746258645853,-568.63,0.00019726,2]
[359694208,1746258645862,-416.83,0.00019726,2]
[359694210,1746258645872,-400.0,0.00019726,2]
[359694212,1746258645881,-400.0,0.00019726,2]
[359694214,1746258645892,-657.83,0.00019726,2]
[359694216,1746258645901,-400.0,0.00019726,2]
[359694218,1746258645911,-400.0,0.00019726,2]
[359694220,1746258645921,-1304.06,0.00019726,2]
[359694222,1746258645931,-400.0,0.00019726,2]
[359694224,1746258645940,-400.0,0.00019726,2]
[359694226,1746258645950,-400.0,0.00019726,2]
[359694228,1746258645959,-188.50303411,0.00019726,2]
[359694230,1746258645969,-1418.92,0.00019726,2]
[359694232,1746258645979,-484.49,0.00019726,2]
[359694234,1746258645989,-411.39,0.00019726,2]
[359694236,1746258645998,-1039.21,0.00019726,2]
[359694238,1746258646009,-400.0,0.00019726,2]
[359694240,1746258646021,-151.0,0.00019726,2]
[359694242,1746258646031,-400.0,0.00019726,2]
[359694244,1746258646040,-577.93,0.00019726,2]
[359694246,1746258646049,-1256.64,0.00019726,2]
[359694248,1746258646059,-873.52,0.00019726,2]
[359694250,1746258646069,-404.73,0.00019726,2]
[359694252,1746258646079,-511.39855085,0.0001989,2]
[359694254,1746258646088,-2593.20415828,0.000199,2]
[359694906,1746258668799,261.661327,0.00022,30]
[359694909,1746258726869,200.06366001,0.000179,2]
[359694916,1746258971523,150.0,0.00022,30]
[359694922,1746259150516,156.693953,0.00020822,15]
[359696170,1746259627531,-300.0,0.00018872,2]
[359696171,1746259627557,-1200.0,0.00018872,2]
[359696172,1746259627580,-300.0,0.00018872,2]
[359696173,1746259627605,-300.0,0.00018872,2]
[359696174,1746259627629,-500.0,0.00018873,2]
[359696175,1746259627653,-501.12682132,0.00018873,2]
[359696176,1746259627869,-500.0,0.00018873,2]
[359696177,1746259627894,-500.0,0.00018873,2]
[359696178,1746259627918,-235.1155267,0.000189,2]
[359696179,1746259627942,-500.0,0.000189,2]
[359696180,1746259627966,-725.72782331,0.00019078,2]
[359696181,1746259627990,-500.0,0.00019173,2]
[359696182,1746259628015,-500.0,0.00019173,2]
[359696183,1746259628040,-359.71528765,0.00019177,2]
[359696184,1746259628066,-154.71305417,0.00019177,2]
[359696185,1746259628098,-3182.11580251,0.00019177,2]
[359696186,1746259628130,-3182.11580251,0.00019177,2]
[359696187,1746259628162,-3182.11580251,0.00019177,2]
[359696188,1746259628195,-3182.11580251,0.00019177,2]
[359696189,1746259628228,-3182.11580251,0.00019177,2]
[359696190,1746259628259,-3182.11580251,0.00019177,2]
[359696191,1746259628294,-3182.11580251,0.00019177,2]
[359696192,1746259628327,-3182.11580251,0.00019177,2]
[359696193,1746259628362,-3182.11580251,0.00019177,2]
[359696194,1746259628393,-3182.11580251,0.00019177,2]
[359696195,1746259628426,-3182.11580251,0.00019177,2]
[359696196,1746259628458,-3182.11580251,0.00019177,2]
[359696197,1746259628487,-3182.11580251,0.00019177,2]
[359696198,1746259628519,-3182.11580251,0.00019177,2]
[359696199,1746259628550,-3182.11580251,0.00019177,2]
[359696200,1746259628582,-3182.11580251,0.00019177,2]
[359696201,1746259628614,-3182.11580251,0.00019177,2]
[359696202,1746259628649,-3182.11580251,0.00019177,2]
[359696203,1746259628681,-3182.11580251,0.00019177,2]
[359696204,1746259628715,-3182.11580251,0.00019177,2]
[359696205,1746259628747,-3182.11580251,0.00019177,2]
[359696206,1746259628781,-3182.11580251,0.00019177,2]
[359696207,1746259628813,-3182.11580251,0.00019177,2]
[359696208,1746259628844,-3182.11580251,0.00019177,2]
[359696209,1746259628877,-3182.11580251,0.00019177,2]
[359696210,1746259628907,-3182.11580251,0.00019177,2]
[359696211,1746259628938,-3182.11580251,0.00019177,2]
[359696212,1746259628972,-3182.11580251,0.00019177,2]
[359696213,1746259629003,-3182.11580251,0.00019177,2]
[359696214,1746259629035,-3182.11580251,0.00019177,2]
[359696215,1746259629067,-3182.11580251,0.00019177,2]
[359696216,1746259629097,-3182.11580251,0.00019177,2]
[359696217,1746259629129,-3182.11580251,0.00019177,2]
[359696218,1746259629162,-3182.11580251,0.00019177,2]
[359696219,1746259629195,-3182.11580251,0.00019177,2]
[359696220,1746259629230,-3182.11580251,0.00019177,2]
[359696221,1746259629263,-3182.11580251,0.00019177,2]
[359696222,1746259629297,-3182.11580251,0.00019177,2]
[359696223,1746259629328,-3182.11580251,0.00019177,2]
[359696224,1746259629359,-3182.11580251,0.00019177,2]
[359696225,1746259629395,-3182.11580251,0.00019177,2]
[359696226,1746259629426,-3182.11580251,0.00019177,2]
[359696227,1746259629460,-3182.11580251,0.00019177,2]
[359696228,1746259629484,-503.97452667,0.00019177,2]
[359696229,1746259629518,-3182.11580251,0.00019177,2]
[359696230,1746259629555,-3182.11580251,0.00019177,2]
[359696231,1746259629586,-3182.11580251,0.00019177,2]
[359696232,1746259629619,-3182.11580251,0.00019177,2]
[359696233,1746259629650,-3182.11580251,0.00019177,2]
[359696234,1746259629683,-3182.11580251,0.00019177,2]
[359696235,1746259629716,-3182.11580251,0.00019177,2]
[359696236,1746259629749,-3182.11580251,0.00019177,2]
[359696237,1746259629782,-3182.11580251,0.00019177,2]
[359696238,1746259629806,-297.17763158,0.00019177,2]
[359696239,1746259629838,-3182.11580251,0.00019177,2]
[359696240,1746259629869,-3182.11580251,0.00019177,2]
[359696241,1746259629900,-3182.11580251,0.00019177,2]
[359696242,1746259629929,-3182.11580251,0.00019177,2]
[359696243,1746259629962,-3182.11580251,0.00019177,2]
[359696244,1746259629993,-3182.11580251,0.00019177,2]